bitfinex/quotes_BTCUSD_20240831
["timestamp","ask_amount","ask_price","bid_price","bid_amount"]
[1725118313008,0.168918,59201.0,59199.0,0.01723051]
[1725118313724,0.16891,59203.0,59199.0,0.01723051]
[1725118314396,0.1,59202.0,59200.0,0.00337806]
[1725118314625,0.169726,59204.0,59201.0,0.01975322]
[1725118314849,0.12650223,59203.0,59201.0,0.01975322]
[1725118315099,0.29541323,59203.0,59201.0,0.01975322]
[1725118315321,0.29541323,59203.0,59202.0,0.02112818]
[1725118315573,0.12650223,59203.0,59202.0,0.02112818]
[1725118316016,0.02650223,59203.0,59202.0,0.02112818]
[1725118316234,0.12650223,59203.0,59202.0,0.02112818]
[1725118316681,0.02650223,59203.0,59201.0,0.19204424]
[1725118317155,0.100818,59204.0,59201.0,0.19204424]
[1725118317379,0.100818,59204.0,59202.0,0.170912]
[1725118317628,0.100818,59204.0,59202.0,0.17428989]
[1725118317859,0.100818,59204.0,59203.0,0.05491076]
[1725118318081,0.000818,59204.0,59203.0,0.22382076]
[1725118318292,0.100818,59204.0,59203.0,0.22382076]
[1725118318516,0.100818,59204.0,59203.0,0.56164076]
[1725118318751,0.000818,59204.0,59203.0,0.56164076]
[1725118320620,0.02731817,59204.0,59203.0,0.56264076]
[1725118322219,0.02731817,59204.0,59203.0,0.22482076]
[1725118322436,0.02731817,59204.0,59203.0,0.05591076]
[1725118323070,0.02731817,59204.0,59203.0,0.22482076]
[1725118323335,0.000818,59204.0,59203.0,0.22482076]
[1725118324664,0.000818,59204.0,59203.0,0.05591076]
[1725118325562,0.000818,59204.0,59203.0,0.22482076]
[1725118326734,0.02731845,59204.0,59203.0,0.22482076]
[1725118328256,0.02731845,59204.0,59203.0,0.05591076]
[1725118329153,0.67614045,59204.0,59203.0,0.05591076]
[1725118329385,1.01395545,59204.0,59203.0,0.001]
[1725118330275,0.987455,59204.0,59203.0,0.001]
[1725118333426,1.01395718,59204.0,59203.0,0.001]
[1725118334613,1.35177218,59204.0,59203.0,0.001]
[1725118335502,1.45277218,59204.0,59203.0,0.001]
[1725118337096,1.42627,59204.0,59203.0,0.001]
[1725118337318,1.764085,59204.0,59203.0,0.001]
[1725118338851,2.1019,59204.0,59203.0,0.001]
[1725118339077,2.1249,59204.0,59203.0,0.001]
[1725118339320,1.787085,59204.0,59203.0,0.001]
[1725118339987,1.80412116,59204.0,59203.0,0.001]
[1725118340234,1.80412116,59204.0,59201.0,0.0008998]
[1725118340235,1.188391,59202.0,59201.0,0.0008998]
[1725118340457,6.719117,59202.0,59201.0,0.0008998]
[1725118340677,6.847117,59202.0,59201.0,0.0008998]
[1725118340902,7.184943,59202.0,59201.0,0.0008998]
[1725118341351,6.504943,59202.0,59201.0,0.0008998]
[1725118341578,1.797117,59202.0,59201.0,0.0018998]
[1725118341797,1.801117,59202.0,59201.0,0.0028998]
[1725118342061,2.264117,59202.0,59201.0,0.0028998]
[1725118342283,1.801117,59202.0,59201.0,0.0028998]
[1725118342719,1.796117,59202.0,59201.0,0.0028998]
[1725118344508,2.133943,59202.0,59201.0,0.0028998]
[1725118345175,1.796117,59202.0,59201.0,0.0028998]
[1725118347184,1.861717,59202.0,59201.0,0.0028998]
[1725118348459,1.89012378,59202.0,59201.0,0.0028998]
[1725118348682,1.861717,59202.0,59201.0,0.0028998]
[1725118353033,1.87940764,59202.0,59201.0,0.0028998]
[1725118355049,2.21805164,59202.0,59201.0,0.0028998]
[1725118356435,1.88022564,59202.0,59201.0,0.0028998]
[1725118357111,2.21805164,59202.0,59201.0,0.0028998]
[1725118359205,7.31786962,59202.0,59201.0,0.0028998]
[1725118359538,7.31986962,59202.0,59201.0,0.0028998]
[1725118359963,7.31986962,59202.0,59201.0,0.0018998]
[1725118360179,7.31986962,59202.0,59201.0,0.0028998]
[1725118360394,7.31586962,59202.0,59201.0,0.0018998]
[1725118360853,7.75217802,59202.0,59201.0,8e-07]
[1725118361072,7.75217802,59202.0,59183.0,0.0008998]
[1725118361073,1.58268,59184.0,59183.0,0.0008998]
[1725118361524,1.68268,59184.0,59183.0,0.0008998]
[1725118361988,1.70919435,59184.0,59183.0,0.0008998]
[1725118363534,1.71819435,59184.0,59183.0,0.0018998]
[1725118363755,1.72219435,59184.0,59183.0,0.0018998]
[1725118364041,1.69168,59184.0,59183.0,0.0018998]
[1725118364460,1.74395864,59184.0,59183.0,0.0018998]
[1725118364677,1.86476247,59184.0,59183.0,0.0018998]
[1725118365112,1.76695864,59184.0,59183.0,0.0018998]
[1725118365575,1.75795864,59184.0,59183.0,0.0008998]
[1725118365784,1.76595864,59184.0,59183.0,0.0018998]
[1725118366664,1.75695864,59184.0,59183.0,0.0018998]
[1725118367115,1.76495864,59184.0,59183.0,0.0028998]
[1725118367790,6.97539206,59184.0,59183.0,0.0028998]
[1725118368027,6.81384042,59184.0,59183.0,0.0028998]
[1725118368469,6.83153106,59184.0,59183.0,0.0028998]
[1725118368911,6.84153106,59184.0,59183.0,0.0028998]
[1725118369389,6.84153106,59184.0,59183.0,0.0018998]
[1725118369390,6.83353106,59184.0,59183.0,0.0018998]
[1725118369605,7.0020827,59184.0,59183.0,0.0018998]
[1725118370049,6.9940827,59184.0,59183.0,8e-07]
[1725118370273,1.997563,59179.0,59178.0,0.0010067]
[1725118370490,2.025563,59179.0,59178.0,0.0010067]
[1725118370760,2.127563,59179.0,59178.0,0.0010067]
[1725118372367,2.141563,59179.0,59178.0,0.0010067]
[1725118373675,2.30811464,59179.0,59178.0,0.0010067]
[1725118373940,2.134563,59179.0,59178.0,0.0010067]
[1725118374824,2.120563,59179.0,59178.0,0.0010067]
[1725118375674,2.1407208,59179.0,59178.0,0.0010067]
[1725118376999,2.0639208,59179.0,59178.0,0.0010067]
[1725118378548,2.1304208,59179.0,59178.0,0.0010067]
[1725118378772,2.1324208,59179.0,59178.0,0.0010067]
[1725118379423,2.18723878,59179.0,59178.0,0.0010067]
[1725118380163,2.18723878,59179.0,59178.0,0.0019065]
[1725118381062,2.1354208,59179.0,59178.0,0.0019065]
[1725118381766,2.1374208,59179.0,59178.0,0.0019065]
[1725118382436,7.1874208,59179.0,59178.0,0.0019065]
[1725118383740,7.23097516,59179.0,59178.0,0.0019065]
[1725118383988,7.28079314,59179.0,59178.0,0.0019065]
[1725118384885,7.44934478,59179.0,59178.0,0.0019065]
[1725118385333,7.52674478,59179.0,59178.0,0.0019065]
[1725118385551,7.86470178,59179.0,59178.0,0.0019065]
[1725118385804,7.86470178,59179.0,59178.0,5e-07]
[1725118386062,7.86470178,59179.0,59171.0,0.0008998]
[1725118386063,1.928283,59172.0,59171.0,0.0008998]
[1725118386252,7.178683,59172.0,59171.0,0.0008998]
[1725118386463,7.23050098,59172.0,59171.0,0.0008998]
[1725118386887,7.27471491,59172.0,59171.0,0.0008998]
[1725118387341,7.27271491,59172.0,59171.0,0.0008998]
[1725118387565,4.84649693,59172.0,59171.0,0.0008998]
[1725118388028,1.69319993,59172.0,59171.0,0.0008998]
[1725118388258,1.68819993,59172.0,59171.0,0.0008998]
[1725118389164,1.70576063,59172.0,59171.0,0.0008998]
[1725118389377,1.70576063,59172.0,59171.0,0.1373998]
[1725118389596,1.67923734,59172.0,59171.0,0.1373998]
[1725118391416,1.70575842,59172.0,59171.0,0.1373998]
[1725118392336,1.70575842,59172.0,59171.0,0.0008998]
[1725118392562,1.8248764,59172.0,59171.0,0.0008998]
[1725118392779,1.8198764,59172.0,59171.0,0.0008998]
[1725118392997,1.8248764,59172.0,59171.0,0.0008998]
[1725118393218,7.38142504,59172.0,59171.0,0.0008998]
[1725118393651,7.2128734,59172.0,59171.0,0.0008998]
[1725118394150,1.86411,59168.0,59167.0,0.0002309]
[1725118394613,7.01411,59168.0,59167.0,0.0002309]
[1725118394844,7.03711,59168.0,59167.0,0.0002309]
[1725118395035,7.20566164,59168.0,59167.0,0.0002309]
[1725118398102,7.27136164,59168.0,59167.0,0.0002309]
[1725118398319,7.31505177,59168.0,59167.0,0.0002309]
[1725118399218,7.78048975,59168.0,59167.0,0.0002309]
[1725118399490,7.77848975,59168.0,59167.0,0.0002309]
[1725118399927,2.81211,59168.0,59167.0,0.0002309]
[1725118400179,2.81211,59168.0,59167.0,0.1445309]
[1725118400180,1.62109,59168.0,59167.0,0.1445309]
[1725118401505,0.50703,59168.0,59167.0,0.1445309]
[1725118401732,0.84505,59168.0,59167.0,0.1445309]
[1725118402883,1.18307,59168.0,59167.0,0.1445309]
[1725118403812,1.28307,59168.0,59167.0,0.1445309]
[1725118406586,1.30959048,59168.0,59167.0,0.1445309]
[1725118408147,1.32651467,59168.0,59167.0,0.1445309]
[1725118410167,1.29999419,59168.0,59167.0,0.1445309]
[1725118411540,1.28307,59168.0,59167.0,0.1445309]
[1725118411800,1.350892,59168.0,59167.0,0.1445309]
[1725118412029,1.350892,59168.0,59167.0,0.15898399]
[1725118412030,1.30508494,59168.0,59167.0,0.15898399]
[1725118415495,1.30508494,59168.0,59167.0,0.1445309]
[1725118416867,0.99358438,59168.0,59167.0,0.1445309]
[1725118417116,0.62904494,59168.0,59167.0,0.1445309]
[1725118417560,0.96706494,59168.0,59167.0,0.1445309]
[1725118417995,0.62904494,59168.0,59167.0,0.1445309]
[1725118418219,0.62904494,59168.0,59167.0,0.15898399]
[1725118418446,0.1,59168.0,59167.0,0.15898399]
[1725118418736,0.16901,59168.0,59167.0,0.15898399]
[1725118418932,0.26901,59168.0,59167.0,0.15898399]
[1725118420300,0.269828,59168.0,59167.0,0.15898399]
[1725118421245,0.100818,59168.0,59167.0,0.15898399]
[1725118421477,0.100818,59168.0,59167.0,0.32799699]
[1725118421478,0.000818,59168.0,59167.0,0.32799699]
[1725118421951,0.000818,59168.0,59167.0,0.66602299]
[1725118422375,0.000818,59168.0,59167.0,0.32799699]
[1725118422846,0.000818,59168.0,59167.0,0.66602299]
[1725118423567,0.02733527,59168.0,59167.0,1.00404899]
[1725118423807,0.01354466,59168.0,59167.0,1.34407499]
[1725118424029,0.000818,59171.0,59170.0,0.845022]
[1725118424266,0.000818,59171.0,59170.0,0.648413]
[1725118433739,0.02733176,59171.0,59170.0,0.648413]
[1725118433954,0.02733176,59171.0,59170.0,0.1414]
[1725118434179,0.19633276,59171.0,59170.0,0.1414]
[1725118436378,0.53433576,59171.0,59170.0,0.1414]
[1725118436600,0.53433576,59171.0,59170.0,0.15565307]
[1725118440186,0.507822,59171.0,59170.0,0.15565307]
[1725118441694,0.53433697,59171.0,59170.0,0.15565307]
[1725118447238,0.507822,59171.0,59170.0,0.15565307]
[1725118450543,0.19633425,59171.0,59170.0,0.15565307]
[1725118453563,0.169819,59171.0,59170.0,0.15565307]
[1725118453784,0.000818,59171.0,59170.0,0.15565307]
[1725118455088,0.000818,59171.0,59170.0,0.32465707]
[1725118455778,0.000818,59171.0,59170.0,0.66266607]
[1725118456022,0.000818,59171.0,59170.0,1.0210548]
[1725118456251,0.000818,59171.0,59170.0,1.74375448]
[1725118456484,0.000818,59171.0,59170.0,1.73104392]
[1725118457600,0.000818,59171.0,59170.0,1.83240027]
[1725118457821,0.000818,59171.0,59170.0,1.85340027]
[1725118458042,0.000818,59171.0,59170.0,1.85540027]
[1725118458260,0.000818,59171.0,59170.0,2.19143726]
[1725118458506,0.000818,59171.0,59170.0,2.19144593]
[1725118458718,0.000818,59171.0,59170.0,2.19344593]
[1725118458965,0.000818,59171.0,59170.0,2.09204539]
[1725118461835,0.000818,59171.0,59170.0,2.10475462]
[1725118462507,0.000818,59171.0,59170.0,2.09204539]
[1725118462716,0.000818,59171.0,59170.0,2.10475462]
[1725118462927,0.000818,59171.0,59170.0,2.09204539]
[1725118463143,0.000818,59171.0,59170.0,2.10475462]
[1725118463573,0.000818,59171.0,59170.0,2.09204539]
[1725118463761,0.000818,59171.0,59170.0,2.10475462]
[1725118464020,0.000818,59171.0,59170.0,2.09204539]
[1725118464971,0.000818,59171.0,59170.0,2.09200471]
[1725118466715,0.000818,59171.0,59170.0,2.09199661]
[1725118467366,0.000818,59171.0,59170.0,2.09385661]
[1725118467575,0.000818,59171.0,59170.0,2.27225661]
[1725118468052,0.000818,59171.0,59170.0,2.3910873]
[1725118468706,0.000818,59171.0,59170.0,2.40379601]
[1725118469383,0.000818,59171.0,59170.0,2.40179601]
[1725118469605,0.000818,59171.0,59170.0,2.40379601]
[1725118469821,0.000818,59171.0,59170.0,2.40179601]
[1725118470532,0.000818,59171.0,59170.0,2.74180501]
[1725118470757,0.00056779,59171.0,59170.0,2.74180501]
[1725118470970,0.50540786,59188.0,59178.0,1.537833]
[1725118471188,0.50540786,59188.0,59178.0,2.19566723]
[1725118471368,0.168917,59201.0,59178.0,2.19566723]
[1725118471616,0.168918,59200.0,59178.0,2.32229757]
[1725118472284,0.168918,59200.0,59178.0,2.19566723]
[1725118473202,0.234632,59202.0,59178.0,2.19566723]
[1725118473637,0.168916,59201.0,59178.0,2.19566723]
[1725118474268,0.168916,59201.0,59178.0,2.29688078]
[1725118474479,0.168916,59201.0,59178.0,2.47528078]
[1725118475537,0.0649,59190.0,59178.0,1.84008772]
[1725118475746,0.02650445,59189.0,59178.0,1.81477405]
[1725118475962,0.02650445,59189.0,59178.0,1.43946988]
[1725118476175,0.02650445,59189.0,59178.0,1.36357]
[1725118477053,0.233849,59190.0,59178.0,1.34057]
[1725118477520,0.02650592,59183.0,59178.0,1.34057]
[1725118478583,0.02650592,59183.0,59178.0,0.924407]
[1725118478788,0.08990592,59183.0,59178.0,0.924407]
[1725118478995,0.08990592,59183.0,59178.0,0.97499599]
[1725118479207,0.08990592,59183.0,59178.0,0.97699599]
[1725118480295,0.0634,59183.0,59178.0,0.97699599]
[1725118480510,0.506857,59189.0,59178.0,0.97699599]
[1725118480511,0.0634,59185.0,59178.0,0.926407]
[1725118481347,0.0634,59185.0,59178.0,0.854907]
[1725118481564,0.0634,59185.0,59178.0,0.859907]
[1725118481981,0.27246897,59189.0,59181.0,0.005]
[1725118482194,0.168948,59190.0,59186.0,0.173957]
[1725118482400,0.16895,59189.0,59184.0,0.168963]
[1725118482611,0.16895,59189.0,59185.0,0.04483478]
[1725118483048,0.16895,59189.0,59186.0,0.005]
[1725118483049,0.168951,59189.0,59186.0,0.005]
[1725118483292,0.168955,59188.0,59185.0,0.04483478]
[1725118483497,0.168949,59190.0,59186.0,0.0354955]
[1725118483709,0.19545536,59190.0,59186.0,0.0354955]
[1725118485069,0.0634,59189.0,59186.0,0.0354955]
[1725118485493,0.19545536,59190.0,59186.0,0.2044535]
[1725118485701,0.02650636,59190.0,59187.0,0.21379078]
[1725118485945,0.168945,59191.0,59187.0,0.21379078]
[1725118486589,0.168945,59191.0,59187.0,0.27809078]
[1725118487453,0.19545095,59191.0,59187.0,0.27809078]
[1725118487659,0.19545095,59191.0,59188.0,0.0354955]
[1725118489189,0.02650595,59191.0,59188.0,0.2044475]
[1725118489618,0.02650595,59191.0,59189.0,0.168948]
[1725118490078,0.0634,59197.0,59193.0,0.168937]
[1725118490301,0.0634,59197.0,59194.0,0.0168937]
[1725118490302,0.232328,59197.0,59194.0,0.0168937]
[1725118490968,0.168931,59196.0,59194.0,0.0168937]
[1725118491678,0.082,59199.0,59194.0,0.0168937]
[1725118491679,0.232333,59195.0,59194.0,0.0168937]
[1725118493003,0.570199,59195.0,59194.0,0.0168937]
[1725118493217,0.401266,59195.0,59189.0,0.168948]
[1725118493434,0.168936,59194.0,59190.0,0.168946]
[1725118493652,0.168936,59194.0,59191.0,0.04483478]
[1725118496788,0.19544136,59194.0,59191.0,0.04483478]
[1725118499512,0.02650536,59194.0,59191.0,0.04483478]
[1725118499729,0.168938,59193.0,59191.0,0.04483478]
[1725118499947,0.168938,59193.0,59192.0,0.02137838]
[1725118501726,0.506815,59193.0,59192.0,0.02137838]
[1725118501930,0.168944,59192.0,59188.0,0.05071109]
[1725118502159,0.168937,59194.0,59189.0,0.168949]
[1725118502361,0.168939,59193.0,59189.0,0.168949]
[1725118503213,0.168939,59193.0,59189.0,0.21966009]
[1725118503429,0.19544467,59193.0,59189.0,0.21966009]
[1725118505126,0.02650567,59193.0,59191.0,0.168944]
[1725118505344,0.02650567,59193.0,59192.0,0.061]
[1725118505753,0.19544367,59193.0,59192.0,0.061]
[1725118506375,0.168942,59192.0,59190.0,0.05071109]
[1725118506577,0.02650567,59193.0,59189.0,0.28066009]
[1725118507001,0.506813,59194.0,59189.0,0.28066009]
[1725118507210,0.506813,59194.0,59190.0,0.05071109]
[1725118509150,0.168938,59193.0,59190.0,0.05071109]
[1725118509353,0.168938,59193.0,59190.0,0.05077793]
[1725118509961,0.168938,59193.0,59190.0,0.21972493]
[1725118510188,0.168938,59193.0,59191.0,0.03577916]
[1725118511239,0.168938,59194.0,59191.0,0.08655709]
[1725118511448,0.000818,59196.0,59192.0,0.0761669]
[1725118511678,0.168937,59194.0,59193.0,0.05078035]
[1725118512117,0.168937,59194.0,59193.0,0.05078107]
[1725118513383,0.19544223,59194.0,59193.0,0.05078107]
[1725118514915,0.02650523,59194.0,59193.0,0.05078107]
[1725118517076,0.168933,59195.0,59193.0,0.05078107]
[1725118517296,0.168933,59195.0,59194.0,0.03769947]
[1725118519450,0.000818,59196.0,59194.0,0.03769947]
[1725118519690,0.169748,59196.0,59194.0,0.03769947]
[1725118520136,0.000818,59196.0,59194.0,0.03769947]
[1725118520356,0.000818,59195.0,59194.0,0.03769947]
[1725118520784,0.000818,59195.0,59194.0,0.09969947]
[1725118523121,0.000818,59195.0,59194.0,0.03769947]
[1725118523757,0.062118,59195.0,59194.0,0.03769947]
[1725118524583,0.000818,59195.0,59194.0,0.03769947]
[1725118530291,0.02732243,59195.0,59194.0,0.03769947]
[1725118530763,0.02732243,59195.0,59194.0,0.20663547]
[1725118531596,0.02732243,59195.0,59194.0,0.94437947]
[1725118531829,0.02732243,59195.0,59194.0,1.07416128]
[1725118532041,0.02732243,59195.0,59194.0,1.02337947]
[1725118532701,0.000818,59195.0,59194.0,1.02337947]
[1725118534277,0.02732046,59195.0,59194.0,1.02337947]
[1725118536103,0.000818,59195.0,59194.0,1.02337947]
[1725118539588,0.02732037,59195.0,59194.0,1.02337947]
[1725118542372,0.000818,59195.0,59194.0,1.02337947]
[1725118543959,0.02732023,59195.0,59194.0,1.36125147]
[1725118544190,0.000818,59196.0,59194.0,1.36125147]
[1725118544191,0.000818,59196.0,59195.0,1.346031]
[1725118544422,0.000818,59196.0,59195.0,2.08213056]
[1725118547155,0.000818,59196.0,59195.0,1.74426456]
[1725118547375,0.000818,59196.0,59195.0,1.84367811]
[1725118547581,0.000818,59196.0,59195.0,1.74226456]
[1725118549118,0.000818,59196.0,59195.0,1.81832829]
[1725118549331,0.000818,59196.0,59195.0,1.74223732]
[1725118550724,0.000818,59196.0,59195.0,1.71923732]
[1725118550935,0.000818,59196.0,59195.0,1.74223732]
[1725118551996,0.000818,59196.0,59195.0,1.73723732]
[1725118552223,0.000818,59196.0,59195.0,1.73223732]
[1725118552433,0.000818,59196.0,59195.0,1.37137132]
[1725118552639,0.000818,59196.0,59195.0,0.658299]
[1725118553259,0.000818,59196.0,59195.0,0.234333]
[1725118553503,0.000818,59196.0,59194.0,0.07604639]
[1725118553717,0.000818,59196.0,59195.0,0.05069851]
[1725118553934,0.000818,59196.0,59195.0,0.02351385]
[1725118554143,0.000818,59196.0,59195.0,0.07421236]
[1725118554144,0.169748,59196.0,59195.0,0.07421236]
[1725118554366,0.844665,59195.0,59194.0,0.00198]
[1725118554830,0.844665,59195.0,59189.0,0.0008998]
[1725118554831,0.168947,59190.0,59189.0,0.0008998]
[1725118555269,0.50683,59192.0,59189.0,0.0008998]
[1725118555490,0.168943,59192.0,59189.0,0.0008998]
[1725118555701,0.168945,59191.0,59189.0,0.0008998]
[1725118555904,0.168945,59191.0,59190.0,0.02214521]
[1725118556123,0.506834,59191.0,59190.0,0.02214521]
[1725118556335,0.506834,59191.0,59189.0,0.0008998]
[1725118556336,0.506841,59190.0,59189.0,0.0008998]
[1725118556552,0.168947,59190.0,59189.0,0.0008998]
[1725118558068,0.02650436,59193.0,59189.0,0.0008998]
[1725118558498,0.19544336,59193.0,59189.0,0.0008998]
[1725118559330,0.19544336,59193.0,59190.0,0.01707506]
[1725118559965,0.02650436,59193.0,59190.0,0.01707506]
[1725118560179,0.02650436,59193.0,59190.0,0.168946]
[1725118560606,0.02650436,59193.0,59191.0,0.168944]
[1725118561305,0.337844,59199.0,59190.0,0.401092]
[1725118561518,0.268926,59198.0,59193.0,0.168937]
[1725118562584,0.268926,59198.0,59194.0,0.168935]
[1725118562794,0.1,59198.0,59194.0,0.168935]
[1725118563000,0.168923,59199.0,59195.0,0.168933]
[1725118563207,0.1,59198.0,59195.0,0.168933]
[1725118563431,0.268919,59200.0,59195.0,0.168933]
[1725118563864,0.168922,59199.0,59195.0,0.168933]
[1725118564091,0.168922,59199.0,59193.0,0.337875]
[1725118564092,0.268925,59198.0,59193.0,0.506811]
[1725118564312,0.168925,59198.0,59194.0,0.168935]
[1725118564760,0.1,59197.0,59194.0,0.168935]
[1725118565846,0.1,59197.0,59190.0,0.0632]
[1725118566066,0.268928,59197.0,59192.0,0.16894]
[1725118566470,0.0663,59196.0,59192.0,0.16894]
[1725118566877,0.235231,59196.0,59192.0,0.16894]
[1725118567521,0.235231,59196.0,59189.0,0.3387988]
[1725118567729,0.235231,59196.0,59191.0,0.168943]
[1725118568138,0.235231,59196.0,59189.0,0.1698488]
[1725118568347,0.235231,59196.0,59190.0,0.168947]
[1725118568978,0.168933,59195.0,59190.0,0.168947]
[1725118569177,0.23523,59196.0,59190.0,0.168947]
[1725118569390,0.168933,59195.0,59190.0,0.168947]
[1725118569811,0.168933,59195.0,59190.0,0.1698468]
[1725118570310,0.16893,59196.0,59190.0,0.1698468]
[1725118572906,0.02650396,59197.0,59191.0,0.168942]
[1725118573169,0.168931,59196.0,59191.0,0.168942]
[1725118573652,0.1,59197.0,59191.0,0.168942]
[1725118573883,0.268928,59197.0,59192.0,0.02339416]
[1725118574337,0.1,59197.0,59192.0,0.02339416]
[1725118574600,0.000818,59204.0,59190.0,0.0008998]
[1725118574601,0.10422315,59200.0,59190.0,0.0008998]
[1725118574817,0.169731,59202.0,59197.0,0.168925]
[1725118575096,0.169731,59202.0,59198.0,0.0232125]
[1725118575318,0.000818,59202.0,59198.0,0.1921365]
[1725118575543,0.100818,59202.0,59199.0,0.168921]
[1725118576703,0.000818,59202.0,59199.0,0.168921]
[1725118576946,0.02731971,59202.0,59200.0,0.02979755]
[1725118577410,0.000818,59202.0,59200.0,0.02979755]
[1725118577658,0.000818,59202.0,59201.0,0.232016]
[1725118579822,0.000818,59202.0,59201.0,0.569848]
[1725118580069,0.000818,59202.0,59201.0,0.5930605]
[1725118581645,0.000818,59202.0,59201.0,0.9308925]
[1725118582089,0.000818,59202.0,59201.0,1.2687245]
[1725118585682,0.000818,59202.0,59201.0,1.31939299]
[1725118586384,0.000818,59202.0,59201.0,1.2707245]
[1725118587075,0.000818,59202.0,59201.0,1.32137939]
[1725118587918,0.000818,59202.0,59201.0,1.34437939]
[1725118588139,0.000818,59202.0,59201.0,1.34437426]
[1725118588352,0.000818,59202.0,59201.0,1.2937245]
[1725118588987,0.000818,59202.0,59201.0,1.34437287]
[1725118589641,0.000818,59202.0,59201.0,1.2937245]
[1725118589871,0.000818,59202.0,59201.0,1.34437287]
[1725118594186,0.000818,59202.0,59201.0,1.34237287]
[1725118594860,0.000818,59202.0,59201.0,1.34437287]
[1725118595275,0.000818,59202.0,59201.0,1.2937245]
[1725118599032,0.000818,59202.0,59201.0,1.2917245]
[1725118602809,0.000818,59202.0,59201.0,0.0232125]
[1725118602810,0.183831,59202.0,59201.0,0.0232125]
[1725118603009,0.183831,59202.0,59198.0,0.0008998]
[1725118603010,0.352744,59202.0,59198.0,0.0008998]
[1725118603228,0.168919,59200.0,59198.0,0.0008998]
[1725118606575,0.168921,59199.0,59198.0,0.0008998]
[1725118607520,0.506764,59199.0,59198.0,0.02401278]
[1725118607756,0.506764,59199.0,59198.0,0.0008998]
[1725118609449,0.844607,59199.0,59198.0,0.0008998]
[1725118609705,0.53326594,59199.0,59198.0,0.0008998]
[1725118611615,1.20895194,59199.0,59198.0,0.0008998]
[1725118611887,1.30195194,59199.0,59198.0,0.0008998]
[1725118612137,1.87007193,59199.0,59198.0,0.0008998]
[1725118612386,1.713293,59199.0,59198.0,0.0008998]
[1725118612623,1.73980036,59199.0,59198.0,0.0008998]
[1725118616841,1.75690807,59199.0,59198.0,0.0008998]
[1725118618473,1.80736571,59199.0,59198.0,0.0008998]
[1725118618726,1.94940999,59199.0,59198.0,0.0008998]
[1725118620342,2.28725299,59199.0,59198.0,0.0008998]
[1725118622485,2.1452109,59199.0,59198.0,0.0008998]
[1725118624586,2.1472109,59199.0,59198.0,0.0008998]
[1725118624811,2.09475326,59199.0,59198.0,0.0008998]
[1725118627391,2.11244139,59199.0,59198.0,0.0008998]
[1725118628782,2.08593184,59199.0,59198.0,0.0008998]
[1725118630731,1.73398884,59199.0,59198.0,0.0008998]
[1725118630988,1.65508884,59199.0,59198.0,0.0008998]
[1725118631447,1.65508884,59199.0,59198.0,0.0646998]
[1725118631963,1.68159514,59199.0,59198.0,0.0646998]
[1725118633638,1.73205278,59199.0,59198.0,0.0008998]
[1725118633910,1.99037589,59199.0,59198.0,0.0008998]
[1725118634389,1.82205278,59199.0,59198.0,0.0008998]
[1725118635102,1.88675278,59199.0,59198.0,0.0008998]
[1725118636632,1.82219514,59199.0,59198.0,0.0008998]
[1725118639828,1.87265278,59199.0,59198.0,0.0008998]
[1725118640496,1.79568884,59199.0,59198.0,0.0008998]
[1725118640703,1.84614648,59199.0,59198.0,0.0008998]
[1725118642527,1.96424048,59199.0,59198.0,0.0008998]
[1725118643224,2.30290148,59199.0,59198.0,0.0008998]
[1725118643448,2.30290148,59199.0,59198.0,8e-07]
[1725118643449,7.77230212,59199.0,59198.0,8e-07]
[1725118643662,2.74530212,59199.0,59198.0,8e-07]
[1725118643881,2.77181488,59199.0,59198.0,8e-07]
[1725118644992,2.5278056,59199.0,59198.0,8e-07]
[1725118645211,2.5178056,59199.0,59198.0,8e-07]
[1725118645446,2.5228056,59199.0,59198.0,8e-07]
[1725118645888,2.5248056,59199.0,59198.0,8e-07]
[1725118646100,2.5228056,59199.0,59198.0,8e-07]
[1725118646319,2.69362614,59199.0,59198.0,8e-07]
[1725118647693,2.1799626,59199.0,59198.0,8e-07]
[1725118648994,1.6471196,59199.0,59198.0,8e-07]
[1725118649216,1.6471196,59199.0,59198.0,0.0629008]
[1725118649437,1.62060684,59199.0,59198.0,0.0629008]
[1725118650502,1.72060684,59199.0,59198.0,0.0629008]
[1725118652893,1.74711534,59199.0,59198.0,0.0629008]
[1725118653782,1.91566698,59199.0,59198.0,0.0629008]
[1725118654418,1.74711534,59199.0,59198.0,0.0629008]
[1725118654634,1.57819434,59199.0,59198.0,0.0629008]
[1725118655472,1.74711534,59199.0,59198.0,0.0629008]
[1725118660403,1.72060684,59199.0,59198.0,0.0629008]
[1725118663727,1.74711499,59199.0,59198.0,0.0629008]
[1725118664894,1.74711499,59199.0,59198.0,8e-07]
[1725118670421,1.72060684,59199.0,59198.0,8e-07]
[1725118673764,1.7471156,59199.0,59198.0,8e-07]
[1725118674420,1.91566724,59199.0,59198.0,8e-07]
[1725118674680,1.7471156,59199.0,59198.0,8e-07]
[1725118674894,0.7335866,59199.0,59198.0,0.1383008]
[1725118675174,0.59879076,59199.0,59198.0,0.1383008]
[1725118675388,0.59879076,59199.0,59198.0,0.15213088]
[1725118675605,0.53409076,59199.0,59198.0,0.15213088]
[1725118675822,0.19624776,59199.0,59198.0,0.15213088]
[1725118677152,0.29624776,59199.0,59198.0,0.15213088]
[1725118679302,0.12732676,59199.0,59198.0,0.15213088]
[1725118679782,0.02732676,59199.0,59198.0,0.15213088]
[1725118679999,0.02732676,59199.0,59198.0,0.32105488]
[1725118681984,0.000818,59199.0,59198.0,0.32105488]
[1725118683344,0.000818,59199.0,59198.0,0.65890388]
[1725118685304,0.0273217,59199.0,59198.0,0.65890388]
[1725118688287,0.0273217,59199.0,59198.0,0.15213088]
[1725118688508,0.0273217,59199.0,59198.0,0.32105488]
[1725118689593,0.0273217,59199.0,59198.0,0.65890388]
[1725118692030,0.000818,59199.0,59198.0,0.65890388]
[1725118695253,0.0273222,59199.0,59198.0,0.65890388]
[1725118696632,0.0273222,59199.0,59198.0,0.32105488]
[1725118696848,0.0273222,59199.0,59198.0,0.15213088]
[1725118697261,0.100818,59199.0,59198.0,0.15213088]
[1725118698951,0.269739,59199.0,59198.0,0.15213088]
[1725118699379,0.100818,59199.0,59198.0,0.15213088]
[1725118700037,0.269739,59199.0,59198.0,0.15213088]
[1725118700477,0.2962441,59199.0,59198.0,0.15213088]
[1725118703272,0.269739,59199.0,59198.0,0.15213088]
[1725118704100,0.607582,59199.0,59198.0,0.15213088]
[1725118705142,0.607582,59199.0,59198.0,0.07683088]
[1725118705347,0.945425,59199.0,59198.0,0.07683088]